bitfinex/quotes_SOLUSD_20251103
["timestamp","ask_amount","ask_price","bid_price","bid_amount"]
[1762134610730,0.72,186.58,186.55,1.57238298]
[1762134611122,20.592,186.59,186.55,1.57238298]
[1762134611321,21.312,186.59,186.55,1.57238298]
[1762134613823,0.72,186.58,186.55,1.57238298]
[1762134614024,2.29238298,186.58,186.5,5.36166523]
[1762134614228,2.29238298,186.58,186.53,1.57238298]
[1762134614447,0.72,186.57,186.53,1.57238298]
[1762134614819,2.29238298,186.57,186.52,1.57238298]
[1762134615032,2.29238298,186.57,186.52,6.93369762]
[1762134615229,0.72,186.56,186.52,6.93369762]
[1762134616630,0.72,186.56,186.52,1.57238298]
[1762134617044,0.72,186.56,186.52,6.93371103]
[1762134617356,3.56766048,186.58,186.54,1.57238298]
[1762134618150,4.28766048,186.58,186.54,1.57238298]
[1762134620347,4.28766048,186.58,186.53,5.36088047]
[1762134620348,0.72,186.57,186.53,1.57238298]
[1762134620853,0.72,186.57,186.49,5.36221781]
[1762134621039,1.57238298,186.56,186.5,1.57238298]
[1762134621661,0.72,186.55,186.5,1.57238298]
[1762134621945,0.72,186.55,186.42,13.41032198]
[1762134621946,22.16438298,186.53,186.42,13.41032198]
[1762134622148,5.14821535,186.52,186.46,1.57238298]
[1762134622337,5.86821535,186.52,186.46,1.57238298]
[1762134622646,0.72,186.51,186.46,1.57238298]
[1762134622852,2.29238298,186.51,186.46,1.57238298]
[1762134623052,7.654157,186.51,186.46,1.57238298]
[1762134623253,0.72,186.5,186.46,1.57238298]
[1762134623637,1.57238298,186.49,186.44,1.57238298]
[1762134623940,2.29238298,186.5,186.45,1.57238298]
[1762134624138,0.72,186.49,186.45,1.57238298]
[1762134624550,2.29238298,186.49,186.44,1.57238298]
[1762134624740,7.65479281,186.49,186.44,1.57238298]
[1762134624940,0.67,186.48,186.43,6.93608341]
[1762134625141,0.67,186.48,186.44,1.57238298]
[1762134625757,0.67,186.48,186.43,5.36390138]
[1762134625949,0.67,186.48,186.44,1.57238298]
[1762134629352,1.57238298,186.47,186.42,1.57238298]
[1762134629554,6.03256772,186.48,186.41,6.9366639]
[1762134629740,6.03256772,186.48,186.41,5.36428092]
[1762134629741,1.57238298,186.46,186.41,5.36428092]
[1762134629935,1.57238298,186.46,186.4,6.93714955]
[1762134630135,0.67,186.45,186.4,6.93714955]
[1762134630360,0.67,186.45,186.41,1.57238298]
[1762134631761,0.67,186.45,186.41,6.93689207]
[1762134633060,1.57238298,186.43,186.38,1e-08]
[1762134633255,40.03382671,186.45,186.38,1e-08]
[1762134633442,1.57238298,186.42,186.38,1e-08]
[1762134633755,0.67,186.41,186.38,1e-08]
[1762134635348,7.60700489,186.41,186.38,1e-08]
[1762134635546,6.03462191,186.41,186.38,1e-08]
[1762134635744,0.67,186.4,186.38,1e-08]
[1762134639259,7.60720762,186.4,186.38,1e-08]
[1762134639561,1.57238298,186.39,186.38,1e-08]
[1762134639756,2.29238298,186.39,186.38,1e-08]
[1762134641268,28.24947767,186.39,186.38,1e-08]
[1762134644777,41.59414966,186.39,186.38,1e-08]
[1762134645770,38.03830536,186.39,186.38,1e-08]
[1762134645952,41.59241434,186.39,186.38,1e-08]
[1762134647446,81.83062453,186.39,186.32,0.2]
[1762134647650,11.36121067,186.33,186.32,0.2]
[1762134648272,12.08121067,186.33,186.32,0.2]
[1762134649665,17.44803297,186.33,186.32,0.2]
[1762134652388,18.33899705,186.33,186.32,0.2]
[1762134655363,34.21939987,186.33,186.3,0.2]
[1762134655586,32.84417475,186.31,186.3,0.2]
[1762134655765,38.21157317,186.31,186.3,0.2]
[1762134655971,38.93157317,186.31,186.3,0.2]
[1762134656882,35.74822611,186.31,186.3,0.2]
[1762134657080,38.93157317,186.31,186.3,0.2]
[1762134661513,38.93157317,186.31,186.24,0.2]
[1762134661514,101.7,186.29,186.24,0.2]
[1762134661670,51.63006922,186.31,186.24,0.2]
[1762134661671,2.46334706,186.26,186.24,0.2]
[1762134661870,20.592,186.25,186.24,0.2]
[1762134662095,23.05534706,186.25,186.24,0.2]
[1762134662495,7.83247457,186.25,186.24,0.2]
[1762134662794,6.08912751,186.25,186.24,0.2]
[1762134662991,23.77534706,186.25,186.24,0.2]
[1762134663165,23.05534706,186.25,186.24,0.2]
[1762134663584,23.77534706,186.25,186.24,0.2]
[1762134663808,23.05534706,186.25,186.24,0.2]
[1762134665185,28.42447457,186.25,186.24,0.2]
[1762134665620,28.42447457,186.25,186.22,0.2]
[1762134665621,8.55247457,186.25,186.22,0.2]
[1762134665782,2.46334706,186.23,186.22,0.2]
[1762134666297,8.49305118,186.23,186.22,0.2]
[1762134667209,30.38082769,186.24,186.22,0.2]
[1762134667413,3.12334706,186.23,186.22,0.2]
[1762134668307,8.49305118,186.23,186.22,0.2]
[1762134672310,6.02970412,186.23,186.22,0.2]
[1762134672510,8.49305118,186.23,186.22,0.2]
[1762134672901,3.12334706,186.23,186.22,0.2]
[1762134673211,9.78882769,186.28,186.22,2.86334706]
[1762134673425,2.46334706,186.31,186.26,2.46334706]
[1762134673716,23.05534706,186.31,186.26,2.46334706]
[1762134673897,3.12334706,186.31,186.26,2.66334706]
[1762134674094,20.592,186.3,186.26,2.66334706]
[1762134674302,20.592,186.29,186.26,2.66334706]
[1762134674496,20.592,186.29,186.24,2.66334706]
[1762134674497,23.05534706,186.29,186.24,2.66334706]
[1762134674697,3.12334706,186.28,186.23,7.83300296]
[1762134675105,0.66,186.27,186.22,2.46334706]
[1762134675415,3.12334706,186.27,186.22,2.46334706]
[1762134676209,2.46334706,186.27,186.22,5.36979155]
[1762134676416,26.60977859,186.28,186.23,2.46334706]
[1762134676620,29.08372259,186.28,186.23,2.46334706]
[1762134677994,21.252,186.28,186.23,2.46334706]
[1762134678315,23.71534706,186.28,186.23,7.83288555]
[1762134678619,28.42372454,186.28,186.23,7.83288555]
[1762134678804,102.76,186.27,186.24,2.46334706]
[1762134679002,102.76,186.27,186.22,2.46334706]
[1762134679003,105.22334706,186.27,186.22,2.46334706]
[1762134679316,3.56002536,186.26,186.22,2.46334706]
[1762134679493,3.56002536,186.26,186.19,13.42648064]
[1762134679694,3.56002536,186.26,186.23,2.46334706]
[1762134680211,102.1,186.27,186.23,2.46334706]
[1762134680403,3.56467525,186.26,186.22,2.46334706]
[1762134680603,4.22467525,186.26,186.22,2.46334706]
[1762134680806,4.22467525,186.26,186.21,5.37026016]
[1762134681010,0.66,186.26,186.22,2.46334706]
[1762134681210,3.56669003,186.26,186.22,2.46334706]
[1762134681414,3.56669003,186.26,186.22,7.83324778]
[1762134681720,4.22669003,186.26,186.22,7.83324778]
[1762134683009,3.56669003,186.26,186.22,7.83324778]
[1762134683418,102.1,186.27,186.25,7.83246338]
[1762134683722,102.1,186.27,186.26,2.46334706]
[1762134684023,102.1,186.27,186.25,7.83246338]
[1762134684419,102.1,186.27,186.24,7.83273256]
[1762134685329,3.57789582,186.26,186.24,7.83273256]
[1762134686507,3.57789582,186.26,186.22,18.76023333]
[1762134686721,4.28789582,186.26,186.22,18.76023333]
[1762134686901,4.28789582,186.26,186.22,21.6668371]
[1762134687228,4.28789582,186.26,186.22,24.13018416]
[1762134688910,4.28789582,186.26,186.22,21.6668371]
[1762134689222,3.57789582,186.26,186.25,2.46334706]
[1762134689822,102.1,186.27,186.25,2.46334706]
[1762134690024,102.1,186.27,186.26,2.46334706]
[1762134691034,102.1,186.27,186.26,7.83218631]
[1762134692128,102.1,186.33,186.26,7.83218631]
[1762134692321,3.58623942,186.32,186.31,2.46334706]
[1762134692530,102.1,186.33,186.31,2.46334706]
[1762134692709,3.58623942,186.32,186.26,18.79093739]
[1762134692908,102.1,186.33,186.26,19.32782131]
[1762134693820,102.1,186.33,186.32,2.46334706]
[1762134695003,20.592,186.39,186.32,2.46334706]
[1762134695208,20.592,186.39,186.36,2.46334706]
[1762134695209,105.6859311,186.38,186.36,2.46334706]
[1762134695434,3.5859311,186.37,186.36,2.46334706]
[1762134696216,102.1,186.38,186.36,2.46334706]
[1762134697118,102.1,186.38,186.36,7.82916218]
[1762134698809,123.382,186.43,186.37,2.46334706]
[1762134699114,123.382,186.43,186.36,5.36581512]
[1762134699115,3.57964408,186.42,186.39,7.82840266]
[1762134699318,4.26964408,186.42,186.39,7.82840266]
[1762134699517,4.26964408,186.42,186.4,2.46334706]
[1762134699719,102.1,186.43,186.41,2.46334706]
[1762134699922,0.1,186.45,186.42,2.46334706]
[1762134700111,0.1,186.45,186.44,2.46334706]
[1762134704312,0.1,186.45,186.42,2.46334706]
[1762134704313,0.79,186.45,186.42,2.46334706]
[1762134704518,0.79,186.45,186.36,9.78882769]
[1762134704745,0.79,186.45,186.42,2.46334706]
[1762134705413,0.79,186.45,186.36,23.20372359]
[1762134705414,0.79,186.45,186.41,2.46334706]
[1762134705614,8.61675076,186.45,186.4,2.46334706]
[1762134705814,104.56334706,186.44,186.39,2.46334706]
[1762134706119,2.46334706,186.43,186.37,7.82899821]
[1762134706319,102.1,186.42,186.37,7.82899821]
[1762134706522,2.46334706,186.4,186.35,2.46334706]
[1762134706728,2.46334706,186.4,186.34,2.46334706]
[1762134707051,0.69,186.39,186.34,2.46334706]
[1762134707547,0.69,186.39,186.35,2.46334706]
[1762134709248,0.69,186.39,186.35,7.82953846]
[1762134710249,0.69,186.39,186.35,2.46334706]
[1762134710454,8.51845123,186.39,186.34,7.82959821]
[1762134710945,0.69,186.38,186.34,2.46334706]
[1762134713134,102.1,186.42,186.35,2.46334706]
[1762134713332,0.69,186.4,186.37,2.46334706]
[1762134714346,0.69,186.4,186.37,1.57445816]
[1762134715339,0.69,186.4,186.32,13.4176503]
[1762134715541,0.69,186.4,186.36,1.57445816]
[1762134716338,102.79,186.42,186.38,1.57445816]
[1762134716542,0.69,186.41,186.38,1.57445816]
[1762134716950,102.1,186.4,186.35,6.94044629]
[1762134717332,0.69,186.39,186.35,6.94044629]
[1762134717535,0.69,186.39,186.34,6.94096881]
[1762134717733,2.26445816,186.39,186.34,1.57445816]
[1762134718170,0.69,186.38,186.34,1.57445816]
[1762134719264,6.0554646,186.38,186.33,1.57445816]
[1762134719551,1.57445816,186.37,186.31,1.57445816]
[1762134719854,102.1,186.36,186.31,1.57445816]
[1762134720055,102.1,186.35,186.3,1.57445816]
[1762134720253,104.36445816,186.35,186.29,6.94243282]
[1762134720547,102.79,186.35,186.31,6.94185658]
[1762134720937,0.69,186.34,186.31,5.36739842]
[1762134722448,0.69,186.34,186.29,14.99439481]
[1762134723338,0.69,186.34,186.31,1.57445816]
[1762134723532,0.69,186.34,186.3,6.94195409]
[1762134723857,1.57445816,186.33,186.28,1.57445816]
[1762134724460,22.16645816,186.31,186.25,1.57445816]
[1762134724632,1.57445816,186.28,186.22,17.87134443]
[1762134724830,1.57445816,186.26,186.21,9.74935966]
[1762134725135,1.57445816,186.23,186.21,9.74935966]
[1762134725751,6.05999248,186.22,186.21,9.74935966]
[1762134726650,7.63445064,186.22,186.21,9.74935966]
[1762134726838,28.22645064,186.22,186.21,9.74935966]
[1762134727155,26.65199248,186.22,186.21,9.74935966]
[1762134727359,28.22645064,186.22,186.21,9.74935966]
[1762134728256,17.42327833,186.22,186.21,9.74935966]
[1762134728463,20.99038932,186.22,186.21,9.74935966]
[1762134730344,30.73974898,186.22,186.21,9.74935966]
[1762134730538,30.73974898,186.22,186.16,0.2]
[1762134730860,1.57445816,186.17,186.15,0.2]
[1762134731057,30.38082769,186.18,186.15,0.2]
[1762134731058,1.57445816,186.16,186.15,0.2]
[1762134731464,7.6361814,186.16,186.15,0.2]
[1762134731942,17.42500909,186.16,186.15,0.2]
[1762134732758,15.85055093,186.16,186.15,0.2]
[1762134732956,17.42500909,186.16,186.15,0.2]
[1762134733747,9.78882769,186.15,186.08,1.57445816]
[1762134733946,1.57445816,186.14,186.08,1.57445816]
[1762134734243,2.26445816,186.14,186.08,1.57445816]
[1762134734552,20.592,186.18,186.11,1.57445816]
[1762134734553,26.65334864,186.18,186.11,1.57445816]
[1762134734860,20.592,186.14,186.11,1.57445816]
[1762134736549,20.592,186.14,186.11,6.94745182]
[1762134737144,13.42430642,186.23,186.13,1.57445816]
[1762134737359,13.43508168,186.18,186.13,1.57445816]
[1762134737548,1.57445816,186.19,186.14,1.57445816]
[1762134737745,6.98783264,186.2,186.14,1.57445816]
[1762134737972,8.5622908,186.2,186.14,1.57445816]
[1762134738142,6.98783264,186.2,186.15,1.57445816]
[1762134738347,9.78882769,186.23,186.18,1.57445816]
[1762134738348,103.67445816,186.23,186.18,1.57445816]
[1762134738548,103.67445816,186.22,186.17,1.57445816]
[1762134738847,103.67445816,186.22,186.16,1.57445816]
[1762134739265,104.36445816,186.22,186.16,1.57445816]
[1762134739443,1.57445816,186.21,186.16,1.57445816]
[1762134739770,2.26445816,186.21,186.16,1.57445816]
[1762134740367,1.57445816,186.21,186.16,1.57445816]
[1762134740561,0.69,186.2,186.16,1.57445816]
[1762134740761,102.1,186.22,186.16,1.57445816]
[1762134740968,2.26445816,186.21,186.16,1.57445816]
[1762134741167,0.69,186.2,186.16,1.57445816]
[1762134741758,1.57445816,186.19,186.14,1.57445816]
[1762134741959,1.57445816,186.19,186.11,13.43291601]
[1762134741960,15.69737417,186.2,186.15,1.57445816]
[1762134742560,0.69,186.2,186.16,1.57445816]
[1762134742751,0.69,186.2,186.16,6.94601172]
[1762134743140,13.43291601,186.21,186.17,1.57445816]
[1762134743345,103.67445816,186.22,186.17,1.57445816]
[1762134743566,117.79557054,186.22,186.17,1.57445816]
[1762134744158,0.69,186.21,186.16,6.94601172]
[1762134745268,0.69,186.21,186.17,1.57445816]
[1762134746274,102.1,186.2,186.17,1.57445816]
[1762134746571,102.1,186.2,186.19,1.57445816]
[1762134747373,102.1,186.2,186.19,6.94531588]
[1762134748050,102.1,186.24,186.19,20.37246019]
[1762134748360,102.1,186.24,186.22,1.57445816]
[1762134748759,102.1,186.24,186.23,1.57445816]
[1762134748953,37.42187895,186.28,186.23,1.57445816]
[1762134749170,21.282,186.28,186.24,1.57445816]
[1762134749384,20.592,186.28,186.23,6.94392895]
[1762134749563,21.282,186.28,186.23,6.94392895]
[1762134749762,0.69,186.27,186.23,6.94392895]
[1762134750188,20.592,186.28,186.23,6.94392895]
[1762134750404,21.282,186.28,186.24,1.57445816]
[1762134751179,21.282,186.28,186.24,6.94374888]
[1762134751476,20.592,186.28,186.24,1.57445816]
[1762134751655,0.69,186.27,186.23,6.94413938]
[1762134752760,16.13901067,186.29,186.25,1.57445816]
[1762134752965,102.79,186.3,186.26,1.57445816]
[1762134753488,0.69,186.29,186.26,1.57445816]
[1762134753669,0.69,186.29,186.25,1.57445816]
[1762134754206,102.1,186.3,186.26,1.57445816]
[1762134754699,102.1,186.3,186.29,6.94243282]
[1762134755567,102.1,186.3,186.29,1.57445816]
[1762134755782,102.1,186.3,186.28,5.36824509]
[1762134755783,102.1,186.3,186.28,6.94270325]
[1762134757172,102.1,186.3,186.29,1.57445816]
[1762134758479,102.1,186.3,186.29,6.94243282]
[1762134759482,102.1,186.3,186.25,0.2]
[1762134759483,102.1,186.3,186.26,5.36883925]
[1762134759694,102.1,186.3,186.29,1.57445816]
[1762134760700,102.1,186.3,186.24,6.29783264]
[1762134760892,2.26445816,186.29,186.23,1.57445816]
[1762134761199,4.26553798,186.29,186.24,1.57445816]
[1762134761580,0.69,186.28,186.24,1.57445816]
[1762134762390,0.69,186.28,186.23,1.57445816]
[1762134762588,0.69,186.28,186.22,5.36999248]
[1762134762589,0.69,186.28,186.24,1.57445816]
[1762134762900,0.69,186.28,186.25,1.57445816]
[1762134763103,102.1,186.3,186.27,1.57445816]
[1762134763284,102.79,186.3,186.27,1.57445816]
[1762134763491,0.69,186.29,186.27,1.57445816]
[1762134763882,0.69,186.29,186.26,1.57445816]
[1762134764085,2.26445816,186.29,186.23,6.944088]
[1762134764294,1.57445816,186.28,186.23,6.944088]
[1762134764509,2.26445816,186.28,186.23,6.944088]
[1762134764798,2.26445816,186.27,186.21,6.94448175]
[1762134765006,2.26445816,186.27,186.22,1.57445816]
[1762134765179,0.69,186.26,186.23,1.57445816]
[1762134765386,102.1,186.26,186.24,1.57445816]
[1762134765702,102.1,186.26,186.23,1.57445816]
[1762134765703,0.69,186.25,186.23,1.57445816]
[1762134766696,0.69,186.25,186.23,6.94409672]
[1762134767488,0.69,186.25,186.21,1.57445816]
[1762134767806,0.69,186.25,186.19,5.37085772]
[1762134767807,102.1,186.24,186.2,1.57445816]
[1762134768187,0.69,186.23,186.2,1.57445816]
[1762134768588,2.26445816,186.23,186.18,5.37113661]
[1762134769006,0.69,186.22,186.18,6.94559477]
[1762134770203,2.26445816,186.22,186.17,1.57445816]
[1762134770594,0.69,186.21,186.17,1.57445816]
[1762134770786,2.26445816,186.21,186.16,6.9461814]
[1762134771000,0.69,186.21,186.16,6.9461814]
[1762134771199,0.69,186.2,186.16,1.57445816]
[1762134771397,0.69,186.2,186.17,1.57445816]
[1762134772511,0.69,186.2,186.16,1.57445816]
[1762134773904,0.69,186.2,186.16,6.94615415]
[1762134775623,102.1,186.19,186.16,6.94615415]
[1762134775997,102.1,186.19,186.18,1.57445816]
[1762134776395,102.1,186.19,186.18,2.46466464]
[1762134777117,102.1,186.19,186.18,8.03581084]
[1762134777336,102.1,186.25,186.18,8.03581084]
[1762134777535,102.79,186.25,186.23,2.46466464]
[1762134779703,102.1,186.25,186.22,2.46466464]
[1762134779910,102.1,186.25,186.16,2.46466464]
[1762134779911,20.592,186.22,186.17,5.37143471]
[1762134780098,20.592,186.22,186.17,7.83609935]
[1762134780300,102.79,186.25,186.21,2.46466464]
[1762134780607,5.36839279,186.28,186.24,2.46466464]
[1762134780608,0.69,186.28,186.24,2.46466464]
[1762134780801,0.69,186.28,186.18,9.98882769]
[1762134780802,0.69,186.28,186.26,2.46466464]
[1762134781006,3.58931264,186.3,186.27,2.46466464]
[1762134781197,123.382,186.31,186.28,2.46466464]
[1762134781606,102.79,186.31,186.29,2.46466464]
[1762134781821,102.1,186.31,186.29,2.46466464]
[1762134782127,102.79,186.31,186.29,2.46466464]
[1762134783496,0.69,186.3,186.27,2.46466464]
[1762134783698,2.46466464,186.28,186.22,2.46466464]
[1762134783920,2.46466464,186.26,186.21,7.8349022]
[1762134784329,0.69,186.26,186.23,2.46466464]
[1762134784516,0.69,186.28,186.24,2.46466464]
[1762134785021,3.15466464,186.28,186.23,2.46466464]
[1762134785443,0.69,186.27,186.23,2.46466464]
[1762134785728,0.69,186.27,186.24,2.46466464]
[1762134786931,0.69,186.27,186.21,13.62570216]
[1762134786932,0.69,186.27,186.19,0.2]
[1762134787125,0.69,186.27,186.23,2.46466464]
[1762134787330,102.79,186.27,186.23,2.46466464]
[1762134787534,0.72,186.26,186.23,2.46466464]
[1762134787726,0.72,186.26,186.19,0.2]
[1762134787727,0.72,186.26,186.24,2.46466464]
[1762134788728,0.72,186.26,186.23,7.83434153]
[1762134792125,102.1,186.25,186.2,2.46466464]
[1762134792318,102.1,186.25,186.23,2.46466464]
[1762134793034,102.82,186.25,186.23,2.46466464]
[1762134794221,102.1,186.25,186.23,2.46466464]
[1762134794521,102.1,186.25,186.23,7.83423134]
[1762134794720,102.82,186.25,186.23,7.83423134]
[1762134795137,102.82,186.25,186.23,2.46466464]
[1762134795332,102.1,186.25,186.23,2.46466464]
[1762134795531,102.82,186.25,186.23,2.46466464]
[1762134796623,102.82,186.25,186.23,7.83435851]
[1762134796927,102.82,186.25,186.23,2.46466464]
[1762134797448,0.72,186.24,186.22,7.83461788]
[1762134797648,0.72,186.24,186.18,5.3711462]
[1762134797843,0.72,186.24,186.19,2.46466464]
[1762134797844,102.1,186.23,186.19,2.46466464]
[1762134798140,102.1,186.23,186.18,5.3711462]
[1762134798347,0.72,186.22,186.2,2.46466464]
[1762134799128,0.72,186.22,186.2,7.83518744]
[1762134799834,0.72,186.22,186.2,2.46466464]
[1762134801037,0.72,186.22,186.19,2.46466464]
[1762134801237,0.72,186.22,186.18,5.3711462]
[1762134801439,0.72,186.22,186.19,2.46466464]
[1762134802143,2.46466464,186.2,186.15,2.46466464]
[1762134802346,0.72,186.19,186.15,2.46466464]
[1762134802644,4.30674851,186.2,186.18,2.46466464]
[1762134802843,102.1,186.21,186.17,2.46466464]
[1762134803043,0.72,186.2,186.17,2.46466464]
[1762134803233,0.72,186.2,186.17,7.83604914]
[1762134805247,4.30901891,186.2,186.17,7.83604914]
[1762134805732,0.68,186.19,186.17,7.83604914]
[1762134810951,0.68,186.19,186.17,2.46466464]
[1762134812752,0.68,186.19,186.17,7.83601853]
[1762134813254,102.78,186.21,186.18,2.46466464]
[1762134813458,102.78,186.21,186.19,2.46466464]
[1762134813459,102.1,186.21,186.19,2.46466464]
[1762134813644,102.1,186.21,186.2,2.46466464]
[1762134814032,102.1,186.21,186.2,7.83523392]
[1762134815641,102.78,186.21,186.2,7.83523392]
[1762134816059,102.1,186.21,186.2,7.83523392]
[1762134816962,102.1,186.26,186.2,7.83523392]
[1762134817131,4.3057469,186.25,186.22,2.46466464]
[1762134817338,0.72,186.25,186.22,2.46466464]
[1762134817573,0.72,186.24,186.22,2.46466464]
[1762134817737,0.72,186.24,186.22,7.83465176]
[1762134817939,0.72,186.24,186.23,2.46466464]
[1762134818133,0.72,186.24,186.22,7.83465176]
[1762134818337,0.72,186.24,186.22,2.46466464]
[1762134818858,0.72,186.24,186.22,7.83459593]
[1762134819634,0.72,186.24,186.23,2.46466464]
[1762134820139,0.72,186.24,186.22,2.46466464]
[1762134823065,0.72,186.24,186.19,2.46466464]
[1762134823243,3.18466464,186.24,186.19,2.46466464]
[1762134823741,0.72,186.23,186.19,2.46466464]
[1762134823938,0.72,186.23,186.2,5.37056928]
[1762134824738,0.72,186.23,186.2,2.46466464]
[1762134825255,2.46466464,186.21,186.16,7.83638788]
[1762134825566,102.1,186.2,186.15,2.46466464]
[1762134825758,3.58526547,186.19,186.15,2.46466464]
[1762134825954,0.72,186.18,186.15,2.46466464]
[1762134826275,0.72,186.18,186.15,7.83665948]
[1762134827143,0.72,186.18,186.16,2.46466464]
[1762134829470,0.72,186.18,186.17,2.46466464]
[1762134830564,0.72,186.18,186.16,7.83627511]
[1762134831068,0.72,186.18,186.14,5.37202336]
[1762134831269,0.72,186.18,186.16,2.46466464]
[1762134832165,102.1,186.2,186.17,2.66466464]
[1762134832374,0.72,186.23,186.19,2.46466464]
[1762134832665,0.72,186.23,186.22,2.46466464]
[1762134832980,4.30501877,186.23,186.22,2.46466464]
[1762134833647,3.58501877,186.23,186.22,2.46466464]
[1762134833846,3.58501877,186.23,186.22,7.83465712]
[1762134834249,0.72,186.27,186.22,7.83465712]
[1762134834449,3.58501018,186.26,186.24,2.46466464]
[1762134834645,6.04967482,186.25,186.2,2.46466464]
[1762134834854,11.41914294,186.24,186.19,2.46466464]
[1762134835070,3.58501018,186.23,186.19,2.46466464]
[1762134835371,0.72,186.23,186.19,2.46466464]
[1762134835543,0.72,186.22,186.19,2.46466464]
[1762134836552,0.72,186.22,186.19,7.83543339]
[1762134836747,0.72,186.22,186.2,2.46466464]
[1762134837155,0.72,186.22,186.19,7.83543339]
[1762134837354,0.72,186.22,186.2,2.46466464]
[1762134837958,4.30501018,186.24,186.19,18.79791306]
[1762134838173,0.72,186.23,186.21,2.46466464]
[1762134838363,0.72,186.23,186.21,1.57714322]
[1762134839374,0.72,186.23,186.21,6.9471736]
[1762134839750,0.72,186.23,186.2,6.94767429]
[1762134840577,0.72,186.23,186.19,6.94799877]
[1762134840975,0.72,186.23,186.19,1.57714322]
[1762134840976,9.67474585,186.23,186.19,1.57714322]
[1762134841152,6.08973567,186.23,186.19,1.57714322]
[1762134841352,0.72,186.22,186.19,1.57714322]
[1762134841553,0.72,186.22,186.19,6.94797594]
[1762134841779,0.72,186.22,186.19,5.37083272]
[1762134841993,0.72,186.22,186.2,1.57714322]
[1762134842167,4.30501018,186.22,186.19,6.94797594]
[1762134842365,0.72,186.22,186.19,6.94797594]
[1762134842561,0.72,186.21,186.19,6.94797594]
[1762134842867,3.58501018,186.22,186.19,5.37083272]
[1762134843069,0.72,186.21,186.19,5.37083272]
[1762134843378,0.72,186.21,186.18,1.57714322]
[1762134843678,11.25253106,186.21,186.16,1.57714322]
[1762134843903,11.25253106,186.21,186.13,1.57714322]
[1762134843904,1.57714322,186.18,186.13,1.57714322]
[1762134844051,1.57714322,186.18,186.12,6.95002093]
[1762134844364,0.72,186.17,186.13,1.57714322]
[1762134844893,0.72,186.17,186.14,1.57714322]
[1762134845499,20.592,186.18,186.16,1.57714322]
[1762134845789,4.30501018,186.17,186.16,1.57714322]
[1762134846481,4.30501018,186.17,186.14,1.57714322]
[1762134846687,0.72,186.16,186.13,1.57714322]
[1762134847062,0.72,186.16,186.12,1.57714322]
[1762134847671,21.312,186.16,186.14,1.57714322]
[1762134847865,0.72,186.16,186.14,1.57714322]
[1762134848160,0.72,186.15,186.13,1.57714322]
[1762134849169,20.592,186.16,186.13,6.9495209]
[1762134849373,0.72,186.15,186.14,1.57714322]
[1762134849572,0.72,186.15,186.13,1.57714322]
[1762134849976,0.72,186.15,186.14,1.57714322]
[1762134850512,0.72,186.15,186.1,5.37320244]
[1762134850781,0.72,186.15,186.11,1.57714322]
[1762134850982,0.72,186.15,186.09,1.57714322]
[1762134850983,7.66928396,186.15,186.09,1.57714322]
[1762134851182,11.25701151,186.15,186.09,1.57714322]
[1762134851359,0.72,186.14,186.09,1.57714322]
[1762134851559,0.72,186.14,186.1,1.57714322]
[1762134852899,0.72,186.14,186.1,6.95058857]
[1762134853393,0.72,186.14,186.11,1.57714322]
[1762134853980,16.06140415,186.14,186.13,1.57714322]
[1762134854190,1.57714322,186.17,186.12,1.57714322]
[1762134854379,16.14943611,186.16,186.15,1.57714322]
[1762134854705,0.72,186.17,186.15,1.57714322]
[1762134855201,0.72,186.17,186.15,6.94912765]
[1762134856076,0.72,186.17,186.16,1.57714322]
[1762134856500,0.72,186.17,186.15,1.57714322]
[1762134856686,0.72,186.17,186.12,5.37287771]
[1762134856882,0.72,186.17,186.14,1.57714322]
[1762134857081,4.30734552,186.17,186.14,1.57714322]
[1762134857479,0.72,186.16,186.12,5.37287771]
[1762134857676,0.72,186.16,186.14,1.57714322]
[1762134859498,0.72,186.16,186.09,0.2]
[1762134859708,0.72,186.16,186.13,1.57714322]
[1762134860178,3.58595577,186.17,186.14,1.57714322]
[1762134860378,0.72,186.17,186.15,1.57714322]